bitfinex/quotes_ETHUSD_20240916
["timestamp","ask_amount","ask_price","bid_price","bid_amount"]
[1726518841290,0.45869491,2280.9,2280.6,4.38478]
[1726518841793,0.45869491,2280.9,2280.5,6.85987]
[1726518841940,0.45869491,2280.9,2280.5,11.24478]
[1726518842142,0.45869491,2280.9,2280.5,6.85987]
[1726518842341,4.38471,2280.7,2280.2,2.475]
[1726518842579,1.38334774,2280.9,2280.2,2.475]
[1726518842775,4.84293491,2280.9,2280.4,4.38505]
[1726518843283,4.84293491,2280.9,2280.5,4.38491]
[1726518843452,4.84293491,2280.9,2280.4,4.38505]
[1726518843656,4.38462,2280.7,2280.3,4.38535]
[1726518843981,4.38462,2280.7,2280.3,4.38528]
[1726518844183,4.38462,2280.7,2280.2,6.8605]
[1726518844370,4.3849,2280.6,2280.2,2.475]
[1726518844576,4.38508,2280.5,2280.1,7.38572]
[1726518844787,4.38529,2280.4,2280.0,4.38593]
[1726518845474,4.3854,2280.3,2279.9,6.72063]
[1726518845735,4.38529,2280.4,2279.6,2.4409]
[1726518845736,5.32415327,2280.4,2279.6,2.4409]
[1726518846007,4.38599,2280.0,2279.6,6.82759]
[1726518846212,4.38561,2280.2,2279.6,6.82759]
[1726518846213,4.38581,2280.1,2279.7,4.38654]
[1726518846425,4.38581,2280.1,2279.6,6.82759]
[1726518846618,4.38626,2279.9,2279.4,4.38697]
[1726518846928,4.38626,2279.9,2279.5,4.38683]
[1726518847276,4.38626,2279.9,2279.4,4.38697]
[1726518847519,4.38643,2279.8,2279.4,4.38697]
[1726518847814,4.38626,2279.9,2279.4,4.38711]
[1726518847998,4.38626,2279.9,2279.3,2.3881]
[1726518847999,4.38643,2279.8,2279.3,6.7753]
[1726518848373,4.38696,2279.5,2278.9,2.7575]
[1726518848619,8.77379,2279.6,2279.1,4.38769]
[1726518848800,2.7536,2280.0,2279.1,4.38769]
[1726518848801,4.38663,2279.7,2279.1,4.38769]
[1726518848985,8.77331,2279.7,2279.1,8.77524]
[1726518849191,0.27536,2279.9,2279.4,4.38694]
[1726518849192,4.38618,2279.9,2279.4,4.38694]
[1726518849387,4.38618,2279.9,2279.3,4.38719]
[1726518849590,4.38618,2279.9,2279.4,0.07562396]
[1726518849787,8.77243,2279.9,2279.4,4.46272396]
[1726518849999,4.38618,2279.9,2279.4,4.46272396]
[1726518850198,4.38618,2279.9,2279.5,0.08772326]
[1726518850401,4.38618,2279.9,2279.6,0.07538837]
[1726518851119,2.7536,2280.0,2279.6,0.07538837]
[1726518851290,4.38592,2280.1,2279.6,0.07538837]
[1726518851477,4.38587,2280.1,2279.6,4.54979452]
[1726518851678,4.38587,2280.1,2279.6,4.46207837]
[1726518851934,8.77175,2280.1,2279.6,4.46207837]
[1726518852221,4.38587,2280.1,2279.6,4.46207837]
[1726518852593,8.77182,2280.1,2279.6,4.46207837]
[1726518852958,4.3863,2279.9,2279.6,0.07538837]
[1726518853531,4.38634,2279.8,2279.6,0.07538837]
[1726518853888,4.38634,2279.8,2279.4,4.38703]
[1726518854092,4.38634,2279.8,2279.7,0.07561994]
[1726518854331,4.38634,2279.8,2279.4,4.38703]
[1726518854531,4.38634,2279.8,2279.7,0.07561994]
[1726518854837,8.77284,2279.8,2279.7,0.07561994]
[1726518855126,8.77284,2279.8,2279.3,4.3873]
[1726518855331,4.84497329,2279.8,2279.7,0.07561994]
[1726518855537,4.84497329,2279.8,2279.4,4.38711]
[1726518855826,4.84497329,2279.8,2279.2,8.77484]
[1726518855827,4.38659,2279.7,2279.2,8.77484]
[1726518856004,4.38659,2279.7,2279.5,0.07585551]
[1726518856202,4.38673,2279.6,2279.2,4.38737]
[1726518856407,4.38673,2279.6,2279.3,0.07609111]
[1726518856604,4.38694,2279.5,2279.3,0.07609111]
[1726518856813,4.38694,2279.5,2279.0,8.77556]
[1726518857007,4.38694,2279.5,2279.1,0.07632676]
[1726518857332,4.20064262,2279.8,2279.1,0.07632676]
[1726518857333,0.45863329,2279.8,2279.1,0.07632676]
[1726518857628,4.38693,2279.5,2279.1,4.38766]
[1726518857815,4.38693,2279.5,2279.2,0.07620893]
[1726518857992,4.38713,2279.4,2279.2,0.07620893]
[1726518858191,4.38713,2279.4,2279.3,0.07609111]
[1726518858388,4.38713,2279.4,2279.0,5.092521]
[1726518858635,4.38693,2279.5,2279.1,0.07632676]
[1726518858801,4.38693,2279.5,2279.1,4.46387676]
[1726518859527,8.77396,2279.5,2279.1,4.46387676]
[1726518860599,4.38693,2279.5,2279.1,4.46387676]
[1726518860892,4.38666,2279.7,2279.2,4.38739]
[1726518860893,8.77337,2279.7,2279.2,4.38739]
[1726518861092,0.45863329,2279.8,2279.1,1.09929013]
[1726518861305,4.38655,2279.7,2279.3,4.46324111]
[1726518861527,4.38655,2279.7,2279.3,4.38715]
[1726518861697,4.38655,2279.7,2279.4,0.0759733]
[1726518861899,8.77327,2279.7,2279.4,0.0759733]
[1726518862093,4.38673,2279.6,2279.4,0.0759733]
[1726518862335,4.38673,2279.6,2279.2,4.3874]
[1726518862631,4.38673,2279.6,2279.1,4.38759]
[1726518862835,4.38673,2279.6,2279.3,0.07609111]
[1726518863017,4.38673,2279.6,2279.2,4.46369893]
[1726518863397,8.77318,2279.7,2279.2,8.85103893]
[1726518863593,4.38674,2279.6,2279.2,4.46354893]
[1726518865044,4.38655,2279.7,2279.2,4.46354893]
[1726518865403,4.38704,2279.5,2279.2,0.07620893]
[1726518866929,4.38713,2279.4,2279.2,0.07620893]
[1726518867234,4.387,2279.5,2279.0,4.38781]
[1726518867437,4.38719,2279.4,2279.3,0.07615281]
[1726518867603,4.38719,2279.4,2279.0,4.38781]
[1726518867806,4.38719,2279.4,2279.1,0.07638846]
[1726518868512,4.38732,2279.3,2279.1,0.07638846]
[1726518868714,4.3875,2279.2,2279.1,0.07638846]
[1726518869048,4.38796,2279.0,2278.6,11.48115]
[1726518869357,4.38796,2279.0,2278.7,4.38846]
[1726518870106,4.38772,2279.1,2278.7,4.38846]
[1726518870333,8.77524,2279.2,2278.8,4.38817]
[1726518870639,4.38762,2279.2,2278.9,0.08775016]
[1726518870841,4.38762,2279.2,2278.8,4.38817]
[1726518871016,4.84609228,2279.3,2278.9,4.38795]
[1726518871212,0.45878228,2279.3,2278.9,4.38794]
[1726518871414,0.45878228,2279.3,2279.1,4.38769]
[1726518871754,0.45878228,2279.3,2279.2,11.419]
[1726518872704,8.77288,2279.8,2279.4,4.38711]
[1726518872909,8.77288,2279.8,2279.2,7.0315]
[1726518872910,4.38675,2279.6,2279.2,7.03141]
[1726518873432,4.38675,2279.6,2279.2,11.41876]
[1726518873629,4.38675,2279.6,2279.2,7.03135]
[1726518873807,4.38675,2279.6,2279.2,2.644]
[1726518874009,4.38661,2279.7,2279.3,4.38721]
[1726518874545,0.45873221,2279.8,2279.2,7.0314]
[1726518874546,4.38681,2279.6,2279.2,2.644]
[1726518874750,4.38681,2279.6,2279.2,7.03149]
[1726518875341,4.38703,2279.5,2279.1,4.38752]
[1726518875548,4.38711,2279.4,2279.0,4.38786]
[1726518875848,4.38711,2279.4,2279.0,4.38781]
[1726518876711,4.38731,2279.3,2278.9,2.644]
[1726518877029,4.38731,2279.3,2278.9,7.03192]
[1726518877352,8.77412,2279.5,2279.0,4.38771]
[1726518877650,4.38702,2279.5,2279.1,4.3876]
[1726518878146,7.04681,2279.7,2279.0,4.38779]
[1726518878147,8.77439,2279.4,2279.0,4.38779]
[1726518878332,8.77439,2279.4,2278.9,7.03205]
[1726518878333,4.38716,2279.4,2278.9,7.03205]
[1726518878534,4.38762,2279.2,2278.8,4.38814]
[1726518880431,7.04502,2279.2,2278.6,2.8306]
[1726518880758,4.38777,2279.1,2278.7,4.46297145]
[1726518881050,7.04495,2279.2,2278.8,4.38826]
[1726518881437,4.38777,2279.1,2278.9,0.07451504]
[1726518881911,4.38777,2279.1,2278.7,4.38843]
[1726518882112,4.38777,2279.1,2279.0,0.07439719]
[1726518882317,4.38777,2279.1,2278.6,7.21924]
[1726518882318,8.77562,2279.1,2278.6,7.21918]
[1726518882538,4.38777,2279.1,2279.0,0.07439719]
[1726518882742,5.65054056,2279.1,2278.6,11.60773]
[1726518882949,4.38777,2279.1,2279.0,0.07439719]
[1726518883115,4.38777,2279.1,2278.7,4.38845]
[1726518883317,4.38777,2279.1,2279.0,0.07439719]
[1726518883509,4.38777,2279.1,2278.7,4.38845]
[1726518883814,4.38745,2279.3,2278.8,4.47601179]
[1726518884032,4.3874,2279.3,2278.9,0.07451504]
[1726518884354,4.3874,2279.3,2278.9,4.46245504]
[1726518884713,4.3875,2279.2,2278.9,4.46245504]
[1726518885161,4.3875,2279.2,2278.9,0.07451504]
[1726518885753,4.38714,2279.4,2279.0,4.38778]
[1726518886065,1.35278376,2279.7,2279.1,4.46197448]
[1726518886066,4.38676,2279.6,2279.1,4.46197448]
[1726518886346,4.38676,2279.6,2279.2,7.22746]
[1726518886713,4.38676,2279.6,2279.3,0.07404883]
[1726518888013,4.38693,2279.5,2279.3,0.07404883]
[1726518888213,4.38711,2279.4,2279.0,4.38785]
[1726518888458,2.6804,2279.3,2279.1,0.07418187]
[1726518888757,7.06778,2279.3,2279.1,0.07418187]
[1726518888955,8.25913692,2279.3,2278.9,4.388]
[1726518889110,8.25913692,2279.3,2279.2,0.07406404]
[1726518889312,8.25913692,2279.3,2278.9,4.388]
[1726518889313,7.06778,2279.3,2278.9,4.388]
[1726518889525,7.06778,2279.3,2279.2,0.07406404]
[1726518889750,7.06778,2279.3,2278.9,4.388]
[1726518890649,4.38753,2279.2,2278.8,4.38827]
[1726518890853,1.35278376,2279.4,2279.3,4.38731]
[1726518891068,0.45866921,2279.5,2279.3,4.825891]
[1726518891272,0.45866921,2279.5,2279.3,4.46113698]
[1726518891437,4.38657,2279.7,2279.3,0.07397698]
[1726518891620,4.38647,2279.8,2279.3,0.07397698]
[1726518891969,4.38647,2279.8,2279.3,8.84834698]
[1726518892461,8.77292,2279.8,2279.3,4.46115698]
[1726518892819,4.38655,2279.7,2279.3,4.46115698]
[1726518893021,1.35278376,2279.8,2279.5,4.38691]
[1726518893221,5.73897376,2279.9,2279.6,0.07348508]
[1726518893924,7.46665042,2279.9,2279.6,0.07348508]
[1726518894236,7.46665042,2279.9,2279.7,0.07333653]
[1726518894237,4.38642,2279.8,2279.7,0.07333653]
[1726518894425,4.38642,2279.8,2279.4,8.77407]
[1726518894754,4.38642,2279.8,2279.5,0.0735721]
[1726518895128,5.73897376,2279.9,2279.5,4.4604621]
[1726518895329,4.38619,2279.9,2279.5,4.4604621]
[1726518895534,5.73897376,2279.9,2279.5,4.4604621]
[1726518895747,4.41421168,2280.0,2279.6,0.0877251]
[1726518895748,1.35278376,2280.0,2279.6,0.0877251]
[1726518895950,2.26236841,2280.1,2279.8,4.38627]
[1726518895951,1.81144049,2280.1,2279.8,4.38627]
[1726518896386,0.45865673,2280.1,2280.0,4.38596]
[1726518896673,1.35278376,2280.3,2280.0,0.07289608]
[1726518896839,5.73817376,2280.3,2280.0,0.07289608]
[1726518897525,1.35278376,2280.3,2280.0,0.07289608]
[1726518897965,5.73817376,2280.3,2280.0,0.07289608]
[1726518898168,4.38567,2280.2,2280.0,0.07289608]
[1726518898383,4.38577,2280.1,2279.7,4.38652]
[1726518898548,4.38619,2279.9,2279.4,4.38702]
[1726518898748,4.38644,2279.8,2279.4,4.38702]
[1726518899535,4.38644,2279.8,2279.2,4.38738]
[1726518899536,4.38658,2279.7,2279.3,4.38727]
[1726518899941,4.38644,2279.8,2279.3,4.38727]
[1726518900235,4.38644,2279.8,2279.4,4.3871]
[1726518901252,5.73922376,2279.8,2279.4,4.3871]
[1726518901574,10.12568376,2279.8,2279.4,4.3871]
[1726518901788,7.1121,2279.5,2279.1,4.3876]
[1726518901937,2.7251,2279.5,2279.2,4.38748]
[1726518902140,5.73941376,2279.7,2279.3,4.38721]
[1726518902475,5.73941376,2279.7,2279.2,8.77489]
[1726518902774,5.73941376,2279.7,2278.9,0.722535]
[1726518902775,4.38717,2279.4,2279.0,4.38778]
[1726518903073,3.0461801,2279.7,2279.0,4.38773]
[1726518903074,4.38708,2279.5,2279.0,4.38773]
[1726518903396,5.73954376,2279.6,2279.2,4.3875]
[1726518903674,4.38694,2279.5,2279.1,4.38768]
[1726518903873,4.38694,2279.5,2279.0,5.549125]
[1726518904076,4.38716,2279.4,2279.0,5.549125]
[1726518904281,4.38746,2279.3,2278.9,4.38807]
[1726518904463,4.38743,2279.3,2278.9,4.38807]
[1726518904834,4.38714,2279.4,2279.0,4.38787]
[1726518905278,5.73980376,2279.5,2279.1,4.38758]
[1726518905481,10.12689376,2279.5,2279.1,4.38758]
[1726518905653,8.77411,2279.5,2279.1,4.38758]
[1726518905840,10.12689376,2279.5,2279.1,4.38758]
[1726518906042,5.73980376,2279.5,2279.1,4.38758]
[1726518906284,5.73954376,2279.6,2279.2,4.38743]
[1726518906581,4.38676,2279.6,2279.2,4.38743]
[1726518907077,4.38693,2279.5,2279.1,4.38766]
[1726518907375,4.38732,2279.3,2278.9,4.38805]
[1726518907683,4.38716,2279.4,2279.0,4.3878]
[1726518908051,4.38676,2279.6,2279.2,4.38749]
[1726518908846,4.38694,2279.5,2279.1,4.3876]
[1726518910065,4.38694,2279.5,2279.1,8.7752]
[1726518910271,1.35278376,2279.6,2279.3,4.3872]
[1726518910453,7.4,2279.9,2279.5,4.38688]
[1726518910655,7.4,2279.9,2279.8,4.38634]
[1726518910868,1.81143582,2280.1,2279.9,4.38605]
[1726518910869,0.45865206,2280.1,2279.9,4.38605]
[1726518911193,0.45865206,2280.1,2280.0,0.07258404]
[1726518911343,4.84442206,2280.1,2280.0,0.07258404]
[1726518911543,4.84442206,2280.1,2279.7,4.38644]
[1726518911836,4.38646,2279.8,2279.2,7.0085]
[1726518912042,4.38656,2279.7,2279.3,4.3873]
[1726518912283,4.38656,2279.7,2279.2,7.0084]
[1726518912441,4.38656,2279.7,2279.2,11.39581]
[1726518912785,4.38673,2279.6,2279.2,7.0084]
[1726518913363,4.38673,2279.6,2279.2,11.39582]
[1726518913913,4.38739,2279.3,2278.8,7.0091]
[1726518914200,8.75278376,2279.7,2278.8,2.621]
[1726518914518,0.4588045,2279.3,2279.0,4.3878]
[1726518914682,4.38701,2279.5,2279.0,8.77554]
[1726518914992,0.45879891,2279.3,2279.0,4.38774]
[1726518916403,4.84611891,2279.3,2278.9,4.38804]
[1726518916558,0.45879891,2279.3,2279.1,4.38767]
[1726518916753,0.45879891,2279.3,2279.1,4.38768]
[1726518917103,0.45879891,2279.3,2279.2,8.775]
[1726518917303,0.45879891,2279.3,2279.2,11.396]
[1726518917646,0.45879891,2279.3,2279.2,16.3335]
[1726518918195,0.45879891,2279.3,2279.2,19.7734]
[1726518918504,7.4,2279.7,2279.6,4.38673]
[1726518918705,5.75821336,2280.2,2279.3,4.52470265]
[1726518918935,0.45875287,2279.9,2279.8,8.77268]
[1726518919099,0.45875287,2279.9,2279.8,11.62798]
[1726518920535,0.45875287,2279.9,2279.7,4.38639]
[1726518920875,0.45875287,2279.9,2279.8,4.38634]
[1726518922000,0.45875287,2279.9,2279.8,8.77268]
[1726518922201,0.45875287,2279.9,2279.8,4.38634]
[1726518922729,0.45875287,2279.9,2279.8,8.77268]
[1726518922896,0.45875287,2279.9,2279.8,9.65682295]
[1726518923090,0.45875287,2279.9,2279.8,10.20682295]
[1726518923715,0.45875287,2279.9,2279.8,9.65682295]
[1726518925535,0.45875287,2279.9,2279.8,9.72936556]
[1726518925842,0.45875287,2279.9,2279.8,4.45888261]
[1726518926893,0.45875287,2279.9,2279.8,0.07254261]
[1726518927101,0.45875287,2279.9,2279.7,4.38643]
[1726518927396,0.45875287,2279.9,2279.8,0.07254261]
[1726518927592,1.21204916,2279.9,2279.5,4.38675]
[1726518927904,1.21204916,2279.9,2279.6,4.38664]
[1726518928117,5.59819916,2279.9,2279.7,0.07222454]
[1726518928448,1.21204916,2279.9,2279.5,4.38675]
[1726518928649,5.59819916,2279.9,2279.8,0.07210678]
[1726518929146,5.59819916,2279.9,2279.5,4.38675]
[1726518929310,1.21204916,2279.9,2279.8,0.07210678]
[1726518929511,0.45875287,2279.9,2279.6,4.38672]
[1726518929852,4.38634,2279.8,2279.7,0.07232195]
[1726518930146,0.48447629,2279.8,2279.0,2.7228]
[1726518930354,7.07483,2279.7,2279.3,4.38716]
[1726518930520,4.38663,2279.7,2279.3,4.38716]
[1726518930721,4.84502287,2279.9,2279.5,4.38681]
[1726518930921,4.84502287,2279.9,2279.2,0.08773016]
[1726518930922,0.45875287,2279.9,2279.2,0.08773016]
[1726518931161,0.45875287,2279.9,2279.8,4.38634]
[1726518932263,0.45875287,2279.9,2279.7,4.38645]
[1726518932547,0.45875287,2279.9,2279.5,4.38679]
[1726518932548,0.45875287,2279.9,2279.6,4.3867]
[1726518933433,0.45875287,2279.9,2279.8,4.38634]
[1726518934322,0.45875287,2279.9,2279.5,4.3868]
[1726518934570,0.45875287,2279.9,2279.6,4.38658]
[1726518936530,2.7357,2279.8,2279.5,4.38691]
[1726518939064,2.7357,2279.8,2279.6,0.14972151]
[1726518939435,2.7357,2279.8,2279.5,4.38691]
[1726518939852,0.45875287,2279.9,2279.6,8.92309151]
[1726518940070,0.45875287,2279.9,2279.7,4.38635]
[1726518940367,0.45875287,2279.9,2279.8,8.92215872]
[1726518940577,0.45875287,2279.9,2279.8,5.82487309]
[1726518940744,0.45875287,2279.9,2279.8,4.53581872]
[1726518941145,0.45875287,2279.9,2279.8,8.92215872]
[1726518941535,0.45875287,2279.9,2279.8,20.53933341]
[1726518941736,0.45875287,2279.9,2279.8,16.56799872]
[1726518942044,0.0198296,2280.2,2280.1,4.38577]
[1726518942388,0.0198296,2280.2,2280.1,9.79782063]
[1726518942389,0.47873665,2280.2,2280.1,9.79782063]
[1726518942667,0.47873665,2280.2,2280.1,8.92065463]
[1726518944045,0.47873665,2280.2,2280.1,0.14911463]
[1726518944456,7.70479665,2280.2,2279.7,4.38647]
[1726518944789,4.38597,2280.0,2279.6,4.3867]
[1726518945295,4.3863,2279.9,2279.5,4.3869]
[1726518945590,5.8404,2279.8,2279.0,7.09731]
[1726518945772,4.38681,2279.6,2279.2,4.38749]
[1726518946289,8.77366,2279.6,2279.2,4.38749]
[1726518946581,4.38674,2279.6,2279.2,4.38742]
[1726518947468,6.42437384,2279.6,2279.1,4.38766]
[1726518947663,6.42437384,2279.6,2278.9,4.3879]
[1726518947664,4.38724,2279.4,2278.9,8.77585]
[1726518947880,4.38724,2279.4,2279.0,4.38784]
[1726518948590,3.0,2279.2,2278.4,3.54571961]
[1726518948761,7.866474,2279.3,2278.4,3.54571961]
[1726518948762,2.6016,2279.3,2279.0,4.3878]
[1726518949671,6.98892,2279.3,2278.9,4.47579867]
[1726518950479,6.98892,2279.3,2278.6,4.38853]
[1726518950480,4.3875,2279.2,2278.6,4.38853]
[1726518950645,4.3875,2279.2,2278.8,4.38825]
[1726518952783,2.6016,2279.3,2279.0,4.38788]
[1726518954550,3.0,2279.5,2279.1,4.38761]
[1726518954800,7.38693,2279.5,2279.0,4.47559548]
[1726518954975,8.73559476,2279.5,2279.0,4.47559548]
[1726518955700,4.38715,2279.4,2279.1,0.15089028]
[1726518957960,5.74249162,2279.4,2279.1,0.15089028]
[1726518958291,5.802,2279.2,2279.1,0.15089028]
[1726518958549,5.802,2279.2,2278.8,4.38817]
[1726518958975,10.18951,2279.2,2278.9,0.15113321]
[1726518959380,12.17986063,2279.2,2278.9,0.15113321]
[1726518959603,12.17986063,2279.2,2278.8,4.38817]
[1726518959916,12.17986063,2279.2,2279.0,0.15101174]
[1726518960126,12.17986063,2279.2,2278.9,0.15113321]
[1726518960424,12.17986063,2279.2,2278.8,4.38817]
[1726518960425,12.17986063,2279.2,2279.0,0.15101174]
[1726518960773,4.38792,2279.0,2278.6,4.38848]
[1726518960979,9.04456806,2279.1,2278.7,4.38837]
[1726518961273,3.0,2279.1,2278.8,4.38825]
[1726518961475,3.0,2279.1,2278.7,4.38843]
[1726518962254,7.38772,2279.1,2278.7,4.38843]
[1726518964211,7.18955,2279.2,2278.8,4.47592789]
[1726518964515,4.35534162,2279.4,2279.0,4.38772]
[1726518964516,2.7622,2279.4,2279.0,4.38772]
[1726518964728,2.7622,2279.4,2278.9,4.38792]
[1726518964922,2.7622,2279.4,2279.1,4.38767]
[1726518965215,2.7622,2279.4,2279.0,4.38776]
[1726518965418,7.1494,2279.4,2279.0,4.38776]
[1726518966191,0.45887745,2279.5,2279.2,4.38741]
[1726518968325,3.97133469,2279.4,2278.9,8.77595]
[1726518968525,8.35863469,2279.4,2278.9,8.77595]
[1726518968927,8.35863469,2279.4,2278.7,4.38836]
[1726518968928,5.5945,2279.3,2278.7,4.38836]
[1726518969127,5.5945,2279.3,2278.7,4.38835]
[1726518969128,3.0,2279.1,2278.7,4.38835]
[1726518969466,3.0,2279.1,2278.8,4.38826]
[1726518970007,3.0,2279.2,2278.7,4.38835]
[1726518970242,7.38764,2279.2,2278.8,4.38822]
[1726518970413,7.38764,2279.2,2278.8,4.53965854]
[1726518970610,7.38764,2279.2,2278.8,4.38822]
[1726518970931,4.38786,2279.1,2278.9,0.15131706]
[1726518971149,4.38786,2279.1,2278.6,4.38849]
[1726518971349,4.38786,2279.1,2278.7,0.15156004]
[1726518971557,4.38786,2279.1,2278.7,4.53993004]
[1726518972817,9.22173747,2279.2,2278.8,4.38823]
[1726518973015,4.84636981,2279.2,2278.8,4.38824]
[1726518973218,4.84636981,2279.2,2278.9,0.15131706]
[1726518973867,4.84636981,2279.2,2278.9,4.53936706]
[1726518973868,0.45886981,2279.2,2278.9,4.53936706]
[1726518974063,4.84641981,2279.2,2278.9,0.15131706]
[1726518975763,0.45886981,2279.2,2279.0,0.08775542]
[1726518975964,0.45886981,2279.2,2279.1,0.15109456]
[1726518976165,4.38715,2279.4,2279.1,0.15109456]
[1726518978726,17.9291076,2279.5,2279.1,4.53872456]
[1726518978931,4.38721,2279.4,2279.1,1.04374802]
[1726518979131,4.38721,2279.4,2279.1,0.15109456]
[1726518980757,4.38732,2279.3,2279.1,0.15109456]
[1726518980962,4.38732,2279.3,2278.9,4.38807]
[1726518981170,4.38732,2279.3,2279.0,0.15085334]
[1726518981867,4.38769,2279.1,2279.0,0.15085334]
[1726518982176,7.38761,2279.2,2278.8,4.38819]
[1726518982363,4.3877,2279.1,2279.0,0.15087377]
[1726518982665,4.3877,2279.1,2278.7,4.38831]
[1726518982840,4.3877,2279.1,2279.0,0.15087377]
[1726518983043,7.38753,2279.2,2278.8,4.38824]
[1726518983266,11.7752,2279.2,2279.0,0.15087377]
[1726518983440,4.38771,2279.1,2278.9,0.15099524]
[1726518983647,4.38771,2279.1,2278.7,4.38842]
[1726518983843,4.38771,2279.1,2278.7,8.77681]
[1726518984067,4.38771,2279.1,2278.7,4.38839]
[1726518984982,1.35278376,2279.4,2278.7,1.136964]
[1726518985147,12.34582928,2279.5,2278.7,1.136964]
[1726518985148,7.38747,2279.3,2278.8,4.38817]
[1726518985340,4.3875,2279.2,2278.8,4.38817]
[1726518985537,4.3875,2279.2,2278.9,0.15105141]
[1726518986768,7.38738,2279.3,2278.9,4.53912141]
[1726518987574,7.38738,2279.3,2278.9,1.04378055]
[1726518987775,7.38738,2279.3,2278.9,5.43181055]
[1726518987978,4.38738,2279.3,2278.9,5.43181055]
[1726518988859,4.38738,2279.3,2279.0,2.8359]
[1726518989284,4.38738,2279.3,2279.1,0.15078294]
[1726518990142,8.7748,2279.3,2279.1,0.15078294]
[1726518990373,4.38738,2279.3,2279.1,0.15078294]
[1726518990580,11.775,2279.2,2279.1,0.15078294]
[1726518990883,11.775,2279.2,2278.7,4.38844]
[1726518990884,13.12778376,2279.2,2278.7,4.38844]
[1726518991037,8.74028376,2279.2,2279.1,0.15070123]
[1726518991240,8.74028376,2279.2,2278.8,4.38825]
[1726518991442,8.74028376,2279.2,2279.1,0.15074718]
[1726518992063,8.74028376,2279.2,2278.8,4.38825]
[1726518992273,8.74028376,2279.2,2279.1,0.15074718]
[1726518992487,11.77518,2279.2,2278.8,4.38827]
[1726518992654,18.20514157,2279.2,2279.1,0.15073187]
[1726518992862,4.38774,2279.1,2278.7,4.38846]
[1726518993053,7.53826619,2279.1,2278.7,4.38846]
[1726518993298,11.92613619,2279.1,2278.8,0.15109628]
[1726518993504,4.38792,2279.0,2278.8,0.15109628]
[1726518993703,4.38792,2279.0,2278.6,4.38861]
[1726518993903,5.75506169,2279.0,2278.9,0.1509748]
[1726518994065,7.89067647,2279.0,2278.6,4.38861]
[1726518994265,7.89067647,2279.0,2278.9,0.1509748]
[1726518994493,5.75506169,2279.0,2278.6,4.38861]
[1726518994997,5.75506169,2279.0,2278.7,0.15121777]
[1726518995778,10.14313169,2279.0,2278.7,0.15121777]
[1726518995979,4.38792,2279.0,2278.6,4.38855]
[1726518996208,4.38792,2279.0,2278.7,0.15121777]
[1726518996411,8.77593,2279.0,2278.7,0.15121777]
[1726518996797,4.3881,2278.9,2278.7,0.15121777]
[1726518997341,4.3881,2278.9,2278.5,7.12205]
[1726518997632,4.38794,2279.0,2278.6,4.38855]
[1726518997803,4.38794,2279.0,2278.6,0.15133928]
[1726518998003,4.38772,2279.1,2278.6,0.15133928]
[1726518998330,4.38796,2279.0,2278.6,4.53982928]
[1726518999428,5.75488169,2279.1,2278.6,4.53982928]
[1726518999597,4.3879,2279.0,2278.6,4.53982928]
[1726519000331,4.38815,2278.9,2278.6,0.15133928]
[1726519000736,7.6724565,2279.0,2278.6,4.53998928]
[1726519001426,12.0604365,2279.0,2278.6,4.53998928]
[1726519002031,7.6724565,2279.0,2278.6,4.53998928]
[1726519002219,4.38809,2278.9,2278.6,0.15133928]
[1726519002424,3.0,2278.9,2278.6,4.53989928]
[1726519002596,4.36714169,2279.0,2278.6,4.53994928]
[1726519002807,8.75513169,2279.0,2278.6,4.53994928]
[1726519004646,7.38799,2279.0,2278.6,4.53994928]
[1726519005154,8.75513169,2279.0,2278.6,4.53994928]
[1726519005917,7.38799,2279.0,2278.6,4.53994928]
[1726519007544,0.4588729,2279.1,2278.8,4.38808]
[1726519007753,0.4588729,2279.1,2278.8,8.77626]
[1726519007906,0.4588729,2279.1,2278.9,0.15114333]
[1726519008740,0.4588729,2279.1,2278.9,0.23889384]
[1726519009618,5.75456169,2279.3,2278.9,0.23889384]
[1726519009821,5.75456169,2279.3,2278.9,4.62691384]
[1726519010019,4.38781,2279.1,2278.9,0.08775051]
[1726519010316,8.75468169,2279.2,2279.0,0.15102186]
[1726519010832,8.75468169,2279.2,2279.1,0.1509004]
[1726519011225,10.11140183,2279.2,2278.9,0.08775047]
[1726519011412,10.11140183,2279.2,2279.1,0.1509004]
[1726519011413,8.75468169,2279.2,2279.1,0.1509004]
[1726519011611,8.75468169,2279.2,2279.0,0.15102186]
[1726519011812,8.75468169,2279.2,2279.1,0.1509004]
[1726519012013,18.01339024,2279.2,2279.1,0.1509004]
[1726519012240,18.01339024,2279.2,2278.6,4.3885]
[1726519012241,18.45004023,2279.2,2278.6,4.3885]
[1726519012436,1.36694735,2279.1,2278.7,4.38835]
[1726519012655,5.75469735,2279.1,2278.7,4.53973631]
[1726519013751,4.38789,2279.0,2278.7,4.53973631]
[1726519014109,1.36694735,2279.1,2278.7,4.53973631]
[1726519014349,4.38779,2279.1,2278.7,4.53973631]
[1726519014558,4.38779,2279.1,2278.8,4.47590479]
[1726519014559,1.36694735,2279.1,2278.8,4.47590479]
[1726519014924,1.36694735,2279.1,2278.9,0.15120461]
[1726519016217,8.41369735,2279.2,2278.9,0.15120461]
[1726519016419,1.36694735,2279.1,2278.9,0.15120461]
[1726519017359,12.80137735,2279.2,2278.9,0.15120461]
[1726519017651,8.41369735,2279.2,2278.9,0.15120461]
[1726519017862,1.82580999,2279.4,2279.1,4.38769]
[1726519018063,0.45886264,2279.4,2279.3,8.77462]
[1726519018352,0.45886264,2279.4,2279.3,17.646072]
[1726519018561,9.20371168,2280.0,2279.8,4.38634]
[1726519018562,1.36694735,2279.9,2279.8,4.38634]
[1726519018781,5.26929786,2280.1,2280.0,7.71476]
[1726519018782,0.0202541,2280.1,2280.0,7.71476]
[1726519018996,0.0202541,2280.1,2280.0,16.48668]
[1726519019166,0.0202541,2280.1,2280.0,25.65725528]
[1726519019392,0.0202541,2280.1,2280.0,29.20626608]
[1726519019557,2.17,2280.2,2280.1,23.45744469]
[1726519019764,2.17,2280.2,2280.1,23.60681966]
[1726519019959,2.17,2280.2,2280.1,24.59220959]
[1726519020174,2.17,2280.2,2280.1,25.16464196]